lending/lending_fUSD_20250418
["ID","MTS","AMOUNT","RATE_DAILY","PERIOD"]
[358327920,1744936230497,-126984.38474705,0.000248,2]
[358327927,1744936232172,-290.00835356,0.000248,2]
[358327928,1744936232184,-14718.84639598,0.000248,2]
[358327929,1744936232195,-19812.22627871,0.000248,2]
[358327930,1744936232231,-639.1315495,0.000248,2]
[358327931,1744936232242,-5601.62938366,0.000248,2]
[358327939,1744936238215,-35235.05431754,0.000248,2]
[358327940,1744936238225,-456.71776008,0.0002489,2]
[358327941,1744936238234,-23792.0733587,0.000249,2]
[358327942,1744936238243,-162.79730242,0.00026957,2]
[358327943,1744936238252,-500.0,0.00026957,2]
[358327944,1744936238262,-164.72,0.00033479,2]
[358327945,1744936238272,-500.0,0.00039726,15]
[358327946,1744936238282,-500.0,0.00039726,15]
[358327947,1744936238292,-500.0,0.00039726,15]
[358327948,1744936238302,-500.0,0.00039726,15]
[358327949,1744936238311,-475.0,0.0004,120]
[358327950,1744936238321,-604.4797596,0.0004,30]
[358327951,1744936238331,-311.18,0.00041172,2]
[358327952,1744936238340,-150.99,0.00042707,2]
[358327953,1744936238351,-150.99,0.00042707,30]
[358327954,1744936238363,-152.9,0.00043073,30]
[358327955,1744936238373,-2276.98416779,0.0004321,2]
[358327956,1744936238384,-215.05,0.00043523,2]
[358327957,1744936238393,-151.0,0.00045,120]
[358327958,1744936238403,-250.0,0.00046538,2]
[358327959,1744936238413,-250.0,0.00046978,2]
[358327960,1744936238422,-668.65185657,0.00048,120]
[358327961,1744936238432,-633.0,0.0005,120]
[358327962,1744936238442,-1007.02271262,0.0005,120]
[358327963,1744936238451,-152.9,0.00051631,120]
[358327964,1744936238461,-349.42263689,0.00051648,30]
[358327965,1744936238471,-7924.57,0.000517,60]
[358327966,1744936238481,-604.0,0.00052,120]
[358327967,1744936238491,-300.0,0.00052,120]
[358327968,1744936238501,-633.0,0.00052,120]
[358327969,1744936238511,-818.61384685,0.00052202,24]
[358327970,1744936238520,-958.04835011,0.00053,120]
[358327971,1744936238531,-1024.02362939,0.00053203,120]
[358327973,1744936238539,-633.0,0.00054,120]
[358327974,1744936238549,-500.0,0.00054033,2]
[358327975,1744936238559,-1000.0,0.00054795,120]
[358327976,1744936238568,-1000.0,0.00054795,120]
[358327977,1744936238578,-1007.0,0.00055,120]
[358327978,1744936238588,-230.50527611,0.00055,30]
[358327979,1744936238597,-152.92,0.000552,54]
[358327980,1744936238607,-152.92,0.000552,54]
[358327981,1744936238617,-152.92,0.000552,54]
[358327982,1744936238626,-152.92,0.000552,54]
[358327983,1744936238636,-152.92,0.000552,54]
[358327984,1744936238646,-152.92,0.000552,54]
[358327986,1744936238655,-152.92,0.000552,54]
[358328003,1744936238804,-152.92,0.000552,54]
[358328005,1744936238815,-152.92,0.000552,54]
[358328007,1744936238824,-152.92,0.000552,54]
[358328009,1744936238833,-501.04618274,0.00055278,15]
[358328011,1744936238843,-500.0,0.00055278,15]
[358328013,1744936238852,-500.0,0.00055278,15]
[358328015,1744936238862,-500.0,0.00055278,15]
[358328017,1744936238871,-500.0,0.00055278,15]
[358328019,1744936238880,-500.0,0.00055278,14]
[358328021,1744936238889,-500.0,0.00055278,14]
[358328023,1744936238899,-500.0,0.00055278,14]
[358328024,1744936238908,-500.51175063,0.00055278,15]
[358328026,1744936238918,-500.0,0.00055278,15]
[358328028,1744936238927,-506.10470492,0.00055278,14]
[358328030,1744936238936,-500.0,0.00055278,15]
[358328032,1744936238945,-633.0,0.00056,120]
[358328033,1744936238955,-580.0,0.00056,14]
[358328034,1744936238970,-318.86706811,0.000562,14]
[358328035,1744936238980,-177.32,0.00057102,2]
[358328036,1744936238990,-164.69,0.00057524,2]
[358328037,1744936239001,-633.0,0.00058,120]
[358328038,1744936239010,-2315.81,0.00058192,2]
[358328039,1744936239020,-166.21,0.0005925,2]
[358328040,1744936239029,-1000.0,0.00059513,2]
[358328041,1744936239040,-2608.27,0.00059604,2]
[358328042,1744936239050,-352.47480303,0.0006,30]
[358328043,1744936239060,-633.0,0.0006,120]
[358328044,1744936239069,-164.86042333,0.0006,120]
[358328045,1744936239079,-799.73625628,0.0006,120]
[358328046,1744936239088,-239.33111293,0.0006,30]
[358328047,1744936239097,-1093.94,0.0006,120]
[358328048,1744936239107,-499.85649999,0.0006,120]
[358328049,1744936239118,-152.9,0.00060189,120]
[358328050,1744936239129,-1000.0,0.00060757,15]
[358328051,1744936239139,-1000.0,0.00060757,15]
[358328052,1744936239148,-1000.0,0.00060757,15]
[358328053,1744936239158,-170.0,0.00061,120]
[358328054,1744936239167,-200.0,0.00061097,2]
[358328055,1744936239177,-156.93,0.00061098,2]
[358328056,1744936239186,-1100.0,0.0006178,120]
[358328057,1744936239195,-946.3320087,0.000618,120]
[358328058,1744936239204,-448.11,0.000618,60]
[358328059,1744936239214,-633.0,0.00062,120]
[358328060,1744936239223,-1100.0,0.00062054,120]
[358328061,1744936239232,-1100.0,0.00062328,120]
[358328062,1744936239241,-1100.0,0.00062602,120]
[358328063,1744936239250,-200.0,0.00062915,120]
[358328064,1744936239259,-1100.0,0.0006315,120]
[358328065,1744936239268,-3622.11026895,0.00063387,2]
[358328066,1744936239277,-1100.0,0.00063698,120]
[358328067,1744936239286,-895.9,0.00063843,30]
[358328068,1744936239296,-160.65,0.00063843,30]
[358328069,1744936239306,-170.0,0.00064,120]
[358328070,1744936239315,-633.0,0.00064,120]
[358328071,1744936239325,-1347.02,0.00064053,30]
[358328072,1744936239335,-1100.0,0.00064246,120]
[358328073,1744936239346,-1100.0,0.00064794,120]
[358328074,1744936239356,-2999.999999,0.00065,120]
[358328075,1744936239367,-250.0,0.00065,120]
[358328076,1744936239376,-1100.0,0.00065342,120]
[358328077,1744936239386,-1100.0,0.0006589,120]
[358328078,1744936239396,-225.66396252,0.00066,120]
[358328079,1744936239405,-633.0,0.00066,120]
[358328080,1744936239415,-500.0,0.00066164,120]
[358328081,1744936239425,-1100.0,0.00066438,120]
[358328082,1744936239434,-595.57866113,0.00066712,120]
[358328083,1744936239444,-1100.0,0.00066986,120]
[358328084,1744936239453,-170.0,0.00067,120]
[358328085,1744936239463,-164.69,0.00067112,2]
[358328086,1744936239472,-912.47258442,0.00067534,120]
[358328087,1744936239482,-1000.76,0.00067732,30]
[358328088,1744936239492,-487.56087047,0.00068,120]
[358328089,1744936239501,-633.0,0.00068,120]
[358328090,1744936239511,-500.0,0.00068493,120]
[358328091,1744936239520,-500.0,0.00068493,120]
[358328092,1744936239531,-500.0,0.00068493,120]
[358328093,1744936239540,-397.90101679,0.00068493,120]
[358328094,1744936239549,-152.9,0.00068747,120]
[358328095,1744936239559,-238.2,0.00069,60]
[358328096,1744936239569,-42016.10736921,0.00069,2]
[358328097,1744936239578,-1492.80226175,0.00069532,2]
[358328098,1744936239587,-1000.0,0.00069641,120]
[358328099,1744936239596,-94219.65775681,0.00069988,120]
[358328100,1744936239605,-170.0,0.0007,120]
[358328101,1744936239614,-448.11,0.0007,60]
[358328102,1744936239624,-499.999999,0.0007,120]
[358328103,1744936239632,-247.24676766,0.0007,120]
[358328104,1744936239642,-1000.0,0.0007006,120]
[358328105,1744936239652,-23900.0,0.00070083,2]
[358328106,1744936239662,-41981.52527173,0.0007015,2]
[358328107,1744936239671,-494.00400063,0.00070776,15]
[358328108,1744936239680,-7502.23082236,0.000709,30]
[358328109,1744936239689,-254.39693239,0.0007096,7]
[358328110,1744936239699,-500.0,0.0007096,15]
[358328111,1744936239709,-200.0,0.0007099,30]
[358328112,1744936239719,-418.000098,0.00071,30]
[358328113,1744936239729,-413.80252106,0.00071,120]
[358328114,1744936239738,-500.0,0.00071057,120]
[358328115,1744936239748,-155.91,0.00071061,2]
[358328116,1744936239758,-153.06,0.00073412,120]
[358328117,1744936239767,-190.97,0.00073475,120]
[358328118,1744936239777,-669.46954742,0.000735,120]
[358328119,1744936239787,-787.43,0.00073522,30]
[358328120,1744936239797,-155.91,0.00074134,2]
[358328121,1744936239807,-1500.59256072,0.000749,120]
[358328122,1744936239816,-249.90401695,0.00075342,2]
[358328123,1744936239826,-932.63,0.00075442,2]
[358328124,1744936239835,-4611.28148157,0.00075752,2]
[358328125,1744936239844,-833.77424222,0.00075852,119]
[358328126,1744936239854,-833.77424222,0.00075913,119]
[358328127,1744936239863,-833.77424222,0.00075988,119]
[358328128,1744936239873,-150.0,0.00076372,30]
[358328129,1744936239883,-7924.57,0.000764,60]
[358328130,1744936239893,-1000.0,0.00076439,15]
[358328131,1744936239902,-164.69,0.00076699,2]
[358328132,1744936239911,-152.3798808,0.00076932,120]
[358328133,1744936239921,-155.91,0.00077206,2]
[358328134,1744936239930,-152.9,0.00077306,120]
[358328135,1744936239940,-254.319,0.00077501,120]
[358328136,1744936239950,-500.0,0.00077501,90]
[358328137,1744936239963,-300.0,0.00077501,60]
[358328138,1744936239973,-99701.4498467,0.00077503,120]
[358328139,1744936239983,-500.0,0.00077573,15]
[358328140,1744936239993,-500.0,0.00077573,15]
[358328141,1744936240003,-617.12936597,0.00077573,15]
[358328142,1744936240012,-1040.38803632,0.00078,120]
[358328143,1744936240021,-1000.0,0.00078043,120]
[358328144,1744936240031,-400.0,0.00078128,2]
[358328145,1744936240041,-1000.0,0.00078304,120]
[358328146,1744936240051,-2000.0,0.00078377,120]
[358328147,1744936240060,-663.36,0.000788,2]
[358328148,1744936240070,-1158.38,0.000788,2]
[358328149,1744936240079,-521.3916,0.000788,2]
[358328150,1744936240089,-2677.5967,0.000788,2]
[358328151,1744936240098,-6163.5263,0.000788,2]
[358328152,1744936240107,-302.6248,0.000788,2]
[358328153,1744936240117,-10133.0776,0.000788,2]
[358328154,1744936240127,-1508.636,0.000788,2]
[358328155,1744936240137,-859.8789,0.000788,2]
[358328156,1744936240146,-820.23355991,0.000788,120]
[358328157,1744936240155,-1000.0,0.00078817,120]
[358328158,1744936240165,-166.77120929,0.00078873,15]
[358328159,1744936240175,-586.43104489,0.00078873,15]
[358328160,1744936240184,-500.0,0.00078873,15]
[358328161,1744936240193,-760.5672,0.000789,30]
[358328162,1744936240202,-3000.0,0.00079,120]
[358328163,1744936240212,-28270.80993416,0.00079,120]
[358328164,1744936240222,-862.84916387,0.00079342,7]
[358328165,1744936240232,-500.0,0.00079351,90]
[358328166,1744936240241,-300.0,0.00079351,60]
[358328167,1744936240251,-991.1077,0.00079352,2]
[358328168,1744936240271,-14788.6551,0.00079352,2]
[358328169,1744936240288,-1848.7297,0.00079352,2]
[358328170,1744936240299,-500.0,0.00079352,2]
[358328171,1744936240309,-25285.7353,0.00079352,2]
[358328172,1744936240318,-8880.6239,0.00079352,2]
[358328173,1744936240327,-3022.1203,0.00079352,2]
[358328174,1744936240337,-2297.6159,0.00079352,2]
[358328175,1744936240346,-20774.2256,0.00079352,2]
[358328176,1744936240356,-88888.0,0.00079352,120]
[358328177,1744936240365,-150.0,0.00079373,15]
[358328178,1744936240374,-448.11,0.000794,60]
[358328179,1744936240384,-500.0,0.00079441,90]
[358328180,1744936240393,-300.0,0.00079441,60]
[358328181,1744936240402,-1003.8932,0.00079451,30]
[358328182,1744936240412,-500.0,0.00079451,120]
[358328183,1744936240421,-405.07702448,0.00079452,120]
[358328184,1744936240430,-614.13120668,0.00079452,120]
[358328185,1744936240439,-510.73057018,0.00079452,120]
[358328186,1744936240449,-500.0,0.00079452,120]
[358328187,1744936240458,-500.0,0.00079452,120]
[358328188,1744936240467,-600.0,0.00079452,120]
[358328189,1744936240476,-500.0,0.00079452,120]
[358328190,1744936240485,-500.0,0.00079452,120]
[358328191,1744936240495,-633.00960259,0.00079452,120]
[358328192,1744936240504,-500.0,0.00079452,7]
[358328193,1744936240513,-500.0,0.00079452,120]
[358328194,1744936240523,-504.65185615,0.00079452,120]
[358328195,1744936240532,-2439.21842544,0.00079646,120]
[358328196,1744936240542,-3283.75540042,0.000797,120]
[358328197,1744936240551,-865.92963557,0.00079885,120]
[358328198,1744936240560,-250.0,0.00079921,15]
[358328199,1744936240569,-1000.0,0.0007997,120]
[358328200,1744936240579,-1000.0,0.0007997,120]
[358328201,1744936240588,-1712.54832801,0.0007997,120]
[358328202,1744936240597,-9316.0,0.00079973,120]
[358328203,1744936240606,-500.0,0.00079999,120]
[358328204,1744936240616,-1000.000001,0.00079999,120]
[358328205,1744936240625,-195376.68371825,0.0008,2]
[358328206,1744936240634,-929.3979205,0.0008,120]
[358328207,1744936240643,-155.91,0.00080278,2]
[358328208,1744936240653,-350.0,0.00080468,15]
[358328209,1744936240662,-1000.0,0.0008077,120]
[358328210,1744936240672,-1000.0,0.0008087,120]
[358328211,1744936240682,-1000.0,0.0008097,120]
[358328212,1744936240691,-419.39924498,0.00081016,15]
[358328213,1744936240701,-500.0,0.00081864,120]
[358328214,1744936240710,-3000.0,0.00082,120]
[358328215,1744936240719,-600.0,0.00082269,120]
[358328217,1744936240728,-7924.57,0.000826,60]
[358328218,1744936240737,-250.0,0.00083,120]
[358328219,1744936240747,-250.0,0.00083,120]
[358328220,1744936240756,-250.0,0.00083,120]
[358328221,1744936240766,-800.0,0.00083031,120]
[358328222,1744936240775,-9858.08790033,0.00083039,15]
[358328224,1744936240877,-1555.26723668,0.00083039,15]
[358328225,1744936240888,-474.12679384,0.00083052,60]
[358328226,1744936240896,-155.91,0.00083351,2]
[358328227,1744936240906,-1000.0,0.00084034,120]
[358328228,1744936240915,-600.0,0.00084242,120]
[358328229,1744936240925,-500.0,0.00084352,60]
[358328230,1744936240934,-600.0,0.00084366,120]
[358328231,1744936240943,-1000.0,0.00084915,120]
[358328232,1744936240952,-152.9,0.00085864,120]
[358328233,1744936240965,-164.69,0.00086286,30]
[358328234,1744936240975,-155.91,0.00086423,2]
[358328235,1744936240984,-1000.0,0.00087575,120]
[358328236,1744936240993,-155.91,0.00089496,2]
[358328237,1744936241003,-800.0,0.00090212,120]
[358328238,1744936241013,-153.06,0.00092133,120]
[358328239,1744936241022,-155.91,0.00092568,2]
[358328240,1744936241031,-600.0,0.0009304,120]
[358328241,1744936241043,-152.9,0.00094422,120]
[358328242,1744936241052,-123797.08538271,0.00095,120]
[358328243,1744936241062,-155.91,0.0009564,2]
[358328244,1744936241071,-1000.0,0.00096333,120]
[358328245,1744936241080,-500.0,0.00096945,120]
[358328246,1744936241090,-155.91,0.00098713,2]
[358328247,1744936241100,-1000.0,0.00099263,120]
[358328248,1744936241109,-500.0,0.00099507,2]
[358328249,1744936241118,-692.98247862,0.00099829,120]
[358328250,1744936241127,-170.0,0.001,120]
[358328251,1744936241136,-155.91,0.00101785,2]
[358328252,1744936241146,-210.44143428,0.00102133,28]
[358328253,1744936241155,-787.43,0.0010293,30]
[358328254,1744936241164,-152.9,0.0010298,120]
[358328255,1744936241173,-500.0,0.00104291,120]
[358328256,1744936241183,-155.91,0.00104858,2]
[358328257,1744936241192,-1000.0,0.0010509,120]
[358328258,1744936241202,-155.91,0.0010793,2]
[358328259,1744936241211,-7924.57,0.00108,60]
[358328260,1744936241221,-500.0,0.00108514,120]
[358328261,1744936241230,-153.06,0.00110855,120]
[358328262,1744936241239,-155.91,0.00111003,2]
[358328263,1744936241249,-152.9,0.00111538,120]
[358328264,1744936241258,-155.91,0.00114075,2]
[358328265,1744936241267,-1000.0,0.00114481,120]
[358328266,1744936241277,-245.58379883,0.00116979,120]
[358328267,1744936241287,-500.0,0.00118944,120]
[358328268,1744936241297,-302.27,0.00123951,120]
[358328269,1744936241306,-12500.0,0.00127323,31]
[358328270,1744936241316,-12500.0,0.00127332,31]
[358328271,1744936241325,-12500.0,0.00127341,31]
[358328272,1744936241336,-12500.0,0.0012735,31]
[358328273,1744936241345,-12500.0,0.00127359,31]
[358328274,1744936241355,-500.0,0.00128724,120]
[358328275,1744936241366,-150.0,0.00129107,120]
[358328276,1744936241374,-153.06,0.00129576,120]
[358328277,1744936241384,-800.0,0.0013174,120]
[358328278,1744936241393,-500.0,0.00137882,120]
[358328279,1744936241402,-151.442983,0.00139726,120]
[358328280,1744936241412,-151.0,0.00139726,120]
[358328281,1744936241421,-151.0,0.00139726,120]
[358328282,1744936241431,-154.30644,0.00139726,120]
[358328283,1744936241440,-151.0,0.00139726,120]
[358328284,1744936241450,-151.0,0.00139726,120]
[358328285,1744936241459,-151.0,0.00139726,120]
[358328286,1744936241469,-159.62999,0.00139726,120]
[358328287,1744936241479,-159.62999,0.00139726,120]
[358328288,1744936241488,-159.62999,0.00139726,120]
[358328289,1744936241498,-159.62999,0.00139726,120]
[358328290,1744936241507,-159.62999,0.00139726,120]
[358328291,1744936241517,-159.62999,0.00139726,120]
[358328292,1744936241528,-159.62999,0.00139726,120]
[358328293,1744936241538,-159.62999,0.00139726,120]
[358328294,1744936241548,-159.62999,0.00139726,120]
[358328295,1744936241558,-159.62999,0.00139726,120]
[358328296,1744936241568,-159.62999,0.00139726,120]
[358328297,1744936241577,-159.62999,0.00139726,120]
[358328298,1744936241586,-159.62999,0.00139726,120]
[358328299,1744936241595,-159.62999,0.00139726,120]
[358328300,1744936241605,-159.62999,0.00139726,120]
[358328301,1744936241614,-159.62999,0.00139726,120]
[358328302,1744936241623,-159.62999,0.00139726,120]
[358328303,1744936241633,-159.62999,0.00139726,120]
[358328304,1744936241642,-159.62999,0.00139726,120]
[358328305,1744936241652,-159.629992,0.00139726,120]
[358328306,1744936241662,-230.296248,0.00139726,120]
[358328307,1744936241670,-151.0,0.00139726,120]
[358328308,1744936241679,-151.0,0.00139726,120]
[358328309,1744936241689,-151.0,0.00139726,120]
[358328310,1744936241701,-907.0,0.00141459,120]
[358328311,1744936241720,-545.0,0.00141459,120]
[358328312,1744936241731,-576.0,0.00141459,120]
[358328313,1744936241741,-1287.0,0.00141459,120]
[358328314,1744936241750,-2136.0,0.00141459,2]
[358328315,1744936241760,-152.0,0.00141459,2]
[358328316,1744936241770,-152.0,0.00141459,120]
[358328317,1744936241779,-2015.288,0.00141459,120]
[358328318,1744936241789,-865.0,0.00141459,120]
[358328319,1744936241798,-11413.35513701,0.00143968,15]
[358328320,1744936241809,-2136.0,0.00144459,2]
[358328321,1744936241819,-152.0,0.00144459,2]
[358328322,1744936241828,-152.0,0.00144459,120]
[358328323,1744936241838,-500.0,0.00145513,120]
[358328324,1744936241847,-200.0,0.00145666,120]
[358328325,1744936241857,-200.0,0.00147266,120]
[358328326,1744936241867,-2136.0,0.00147459,2]
[358328327,1744936241877,-152.0,0.00147459,120]
[358328328,1744936241886,-46703.000001,0.0015,120]
[358328329,1744936241896,-2136.0,0.00150459,2]
[358328330,1744936241905,-152.0,0.00150459,120]
[358328331,1744936241915,-1000.0,0.00152569,120]
[358328332,1744936241925,-908.0,0.00153459,2]
[358328333,1744936241935,-800.0,0.00153513,120]
[358328334,1744936241944,-500.0,0.00159423,120]
[358328335,1744936241954,-5000.0,0.0015949,120]
[358328336,1744936241966,-200.0,0.00161554,120]
[358328337,1744936241975,-800.0,0.00163835,120]
[358328338,1744936241985,-1000.0,0.00168309,120]
[358328339,1744936241994,-500.0,0.00168396,120]
[358328340,1744936242003,-600.0,0.0017094,120]
[358328341,1744936242014,-600.0,0.00182601,120]
[358328342,1744936242023,-600.0,0.00183054,120]
[358328343,1744936242033,-210.44143428,0.00183566,28]
[358328344,1744936242043,-150.0,0.00188652,120]
[358328345,1744936242053,-150.0,0.00189589,120]
[358328346,1744936242063,-500.0,0.00189834,120]
[358328347,1744936242072,-500.0,0.00190369,120]
[358328348,1744936242081,-600.0,0.001927,120]
[358328349,1744936242091,-3784.49193401,0.00193297,60]
[358328350,1744936242100,-151.0,0.00196658,120]
[358328351,1744936242110,-150.0,0.00198946,120]
[358328352,1744936242119,-170.0,0.002,120]
[358328353,1744936242129,-1143.33758564,0.002,30]
[358328354,1744936242139,-12974.03811428,0.002,120]
[358328355,1744936242168,-865.0,0.00144459,120]
[358328356,1744936242178,-61534.99842857,0.002,120]
[358328357,1744936242414,-295.84050869,0.00039726,15]
[358328358,1744936242644,-204.15949131,0.00039726,15]
[358328359,1744936242654,-208.38892404,0.00039726,15]
[358328360,1744936242663,-865.0,0.00147459,120]
[358328361,1744936242674,-925490.96345715,0.002,120]
[358328362,1744936242683,-11413.35513701,0.00204897,15]
[358328363,1744936242693,-500.0,0.00205685,120]
[358328364,1744936242702,-472254.72110239,0.0021,120]
[358328369,1744936243220,-274.94975257,0.0021,120]
[358328370,1744936243231,-1133.97,0.0021,120]
[358328379,1744936246317,-1328.0,0.00141459,120]
[358328380,1744936246327,-89.89246548,0.00144459,120]
[358328381,1744936246479,-394.08453452,0.00144459,120]
[358328382,1744936246489,-4287.56386318,0.0021,120]
[358328383,1744936246535,-1327.51523341,0.0021,120]
[358328384,1744936246546,-1254.935454,0.0021,120]
[358328388,1744936744990,-150.0,0.00041,120]
[358328389,1744936745017,-604.0,0.00052,120]
[358328390,1744936745043,-151.0,0.00052,120]
[358328391,1744936745070,-151.0,0.00053,100]
[358328392,1744936745096,-500.0,0.00053424,30]
[358328393,1744936745121,-500.0,0.00053972,32]
[358328394,1744936745147,-190.0,0.00054,120]
[358328395,1744936745173,-500.0,0.0005452,34]
[358328396,1744936745202,-500.0,0.00055068,36]
[358328397,1744936745227,-500.0,0.00055616,38]
[358328398,1744936745252,-700.0,0.00056,120]
[358328399,1744936745277,-500.0,0.00056164,40]
[358328400,1744936745302,-500.0,0.00056712,42]
[358328401,1744936745328,-500.0,0.0005726,44]
[358328402,1744936745352,-500.0,0.00057808,46]
[358328403,1744936745378,-600.0,0.00058,120]
[358328404,1744936745404,-500.0,0.00058356,48]
[358328405,1744936745429,-500.0,0.00058904,50]
[358328406,1744936745454,-500.0,0.00059452,52]
[358328407,1744936745479,-500.0,0.00059999,54]
[358328408,1744936745504,-500.0,0.00060166,120]
[358328409,1744936745529,-350.0,0.00060435,111]
[358328410,1744936745554,-618.8729447,0.00060547,56]
[358328411,1744936745579,-500.0,0.00061,120]
[358328412,1744936745605,-151.0,0.00061507,120]
[358328413,1744936745630,-3000.0,0.0006178,120]
[358328414,1744936745657,-600.0,0.00062053,20]
[358328415,1744936745682,-3000.0,0.00062054,120]
[358328416,1744936745707,-150.0,0.00062054,12]
[358328417,1744936745733,-3000.0,0.00062328,120]
[358328418,1744936745759,-3000.0,0.00062602,120]
[358328419,1744936745787,-3000.0,0.00062876,120]
[358328420,1744936745816,-3000.0,0.0006315,120]
[358328421,1744936745841,-150.0,0.00063402,30]
[358328422,1744936745867,-3000.0,0.00063424,120]
[358328423,1744936745891,-3000.0,0.00063972,120]
[358328424,1744936745916,-400.0,0.00064,120]
[358328425,1744936745940,-3000.0,0.0006452,120]
[358328426,1744936745966,-3000.0,0.00065068,120]
[358328427,1744936745991,-3000.0,0.00065616,120]
[358328428,1744936746017,-350.0,0.00065857,111]
[358328429,1744936746042,-3000.0,0.00066164,120]
[358328430,1744936746067,-3000.0,0.00066712,120]
[358328431,1744936746092,-300.0,0.00067,120]
[358328432,1744936746117,-3000.0,0.0006726,120]
[358328433,1744936746142,-3000.0,0.00067808,120]
[358328434,1744936746167,-433.0,0.000681,120]
[358328435,1744936746192,-3000.0,0.00068356,120]
[358328436,1744936746218,-170.0,0.0007,120]
[358328437,1744936746243,-151.0,0.00071014,120]
[358328438,1744936746268,-500.0,0.0007194,120]
[358328439,1744936746293,-700.0,0.00074529,120]
[358328440,1744936746319,-170.0,0.00075,120]
[358328441,1744936746347,-1262.771,0.00075871,120]
[358328442,1744936746372,-221.695,0.00075871,120]
[358328443,1744936746397,-3751.98408995,0.00075872,119]
[358328444,1744936746423,-3751.98408995,0.00075874,119]
[358328445,1744936746448,-3751.98408995,0.00075923,119]
[358328446,1744936746473,-1000.0,0.0007997,120]
[358328447,1744936746498,-1712.54832801,0.0007997,120]
[358328448,1744936746522,-1000.0,0.0008,120]
[358328449,1744936746547,-170.0,0.0008,120]
[358328450,1744936746572,-151.0,0.00080521,120]
[358328451,1744936746597,-800.0,0.0008054,120]
[358328452,1744936746623,-1000.0,0.0008077,120]
[358328453,1744936746657,-1000.0,0.0008087,120]
[358328454,1744936746690,-1000.0,0.0008097,120]
[358328455,1744936746718,-500.0,0.00083771,120]
[358328456,1744936746749,-500.0,0.000838,120]
[358328457,1744936746781,-1262.772,0.00084403,120]
[358328458,1744936746812,-170.0,0.00085,120]
[358328459,1744936746844,-500.0,0.00086412,120]
[358328460,1744936746875,-700.0,0.00088585,120]
[358328461,1744936746903,-170.0,0.0009,120]
[358328462,1744936746932,-151.0,0.00090027,120]
[358328463,1744936746963,-900.0,0.00090804,120]
[358328464,1744936746993,-1262.772,0.00092936,120]
[358328465,1744936747023,-800.0,0.0009641,120]
[358328466,1744936747053,-264.03112285,0.000975,120]
[358328467,1744936747085,-700.0,0.00097558,120]
[358328468,1744936747114,-900.0,0.00097801,120]
[358328469,1744936747145,-700.0,0.00099931,120]
[358328470,1744936747177,-170.0,0.001,120]
[358328471,1744936747212,-1000.0,0.001,120]
[358328472,1744936747242,-151.0,0.001,120]
[358328473,1744936747272,-700.0,0.00100105,120]
[358328474,1744936747307,-1262.772,0.00101468,120]
[358328475,1744936747337,-500.0,0.00101834,120]
[358328476,1744936747368,-151.0,0.00102097,101]
[358328477,1744936747395,-600.0,0.00103045,120]
[358328478,1744936747423,-800.0,0.00104032,120]
[358328479,1744936747457,-151.36,0.00104231,120]
[358328480,1744936747484,-500.0,0.00105397,120]
[358328481,1744936747511,-252.88,0.001067,7]